[Event "Early-Titled-Tuesday-Blitz-April-16-2024"]
[Site "Chess.com"]
[Date "2024.04.16"]
[Round "6"]
[White "Nikolakis2014"]
[Black "UNSTOPPABLE_LEGEND"]
[Result "1-0"]
[WhiteElo "2732"]
[BlackElo "2561"]
[TimeControl "180+1"]
[EndTime "9:08:55 PDT"]
[Termination "Nikolakis2014 won by resignation"]

1. Nf3 {[%clk 0:03:00.9]} 1... c5 {[%clk 0:02:57.5]} 2. c4 {[%clk 0:03:00.4]}
2... Nc6 {[%clk 0:02:56.1]} 3. Nc3 {[%clk 0:03:00.4]} 3... e5 {[%clk 0:02:56.1]}
4. e3 {[%clk 0:03:00.4]} 4... Nf6 {[%clk 0:02:55.9]} 5. d4 {[%clk 0:02:59.9]}
5... e4 {[%clk 0:02:55.6]} 6. Ne5 {[%clk 0:02:59.6]} 6... Be7 {[%clk 0:02:52]}
7. Be2 {[%clk 0:02:57]} 7... O-O {[%clk 0:02:50.7]} 8. O-O {[%clk 0:02:51.8]}
8... Bd6 {[%clk 0:02:25.5]} 9. Ng4 {[%clk 0:02:32.7]} 9... Re8 {[%clk
0:02:12.1]} 10. Nxf6+ {[%clk 0:02:25.4]} 10... Qxf6 {[%clk 0:02:13]} 11. Nb5
{[%clk 0:02:22.9]} 11... a6 {[%clk 0:02:08.6]} 12. Nxd6 {[%clk 0:02:20.2]} 12...
Qxd6 {[%clk 0:02:09.5]} 13. dxc5 {[%clk 0:02:20.5]} 13... Qxc5 {[%clk
0:02:09.8]} 14. b3 {[%clk 0:02:20.8]} 14... d6 {[%clk 0:02:09.1]} 15. Bb2 {[%clk
0:02:20.6]} 15... Bf5 {[%clk 0:02:08.8]} 16. Qd2 {[%clk 0:02:20.4]} 16... Rad8
{[%clk 0:02:05.4]} 17. Rad1 {[%clk 0:02:20.4]} 17... Ne5 {[%clk 0:02:06.1]} 18.
Qd4 {[%clk 0:02:06.8]} 18... Qc7 {[%clk 0:02:03.9]} 19. Rd2 {[%clk 0:02:03.8]}
19... Bg6 {[%clk 0:02:03.3]} 20. Rfd1 {[%clk 0:02:03.3]} 20... f6 {[%clk
0:01:59.6]} 21. Ba3 {[%clk 0:02:01.2]} 21... Qc6 {[%clk 0:01:58]} 22. h3 {[%clk
0:01:49.7]} 22... Nd3 {[%clk 0:01:54.2]} 23. f3 {[%clk 0:01:35.3]} 23... d5
{[%clk 0:01:38]} 24. c5 {[%clk 0:01:10.4]} 24... h6 {[%clk 0:01:13.7]} 25. h4
{[%clk 0:00:55.4]} 25... Kh7 {[%clk 0:01:10.7]} 26. Bxd3 {[%clk 0:00:52.5]}
26... exd3 {[%clk 0:01:10.1]} 27. h5 {[%clk 0:00:52.7]} 27... Bxh5 {[%clk
0:01:05]} 28. Rxd3 {[%clk 0:00:52.7]} 28... Bg6 {[%clk 0:01:04.7]} 29. Rc3
{[%clk 0:00:53]} 29... Re5 {[%clk 0:00:22.3]} 30. Bb2 {[%clk 0:00:52.9]} 30...
Rde8 {[%clk 0:00:21.1]} 31. Rd2 {[%clk 0:00:52.8]} 31... Qe6 {[%clk 0:00:19.6]}
32. Kf2 {[%clk 0:00:51.9]} 32... Qf5 {[%clk 0:00:17.1]} 33. Qf4 {[%clk
0:00:47.3]} 33... Qh5 {[%clk 0:00:16]} 34. b4 {[%clk 0:00:42.3]} 34... Qh1
{[%clk 0:00:15]} 35. Rc1 {[%clk 0:00:42.3]} 35... Qh5 {[%clk 0:00:11.1]} 36.
Bxe5 {[%clk 0:00:42]} 36... fxe5 {[%clk 0:00:12]} 37. Qg3 {[%clk 0:00:42.3]}
37... d4 {[%clk 0:00:11.5]} 38. exd4 {[%clk 0:00:39]} 38... exd4 {[%clk
0:00:12.4]} 39. Rxd4 {[%clk 0:00:38.9]} 39... Qf5 {[%clk 0:00:12.3]} 40. Rd2
{[%clk 0:00:38.5]} 40... Qe6 {[%clk 0:00:12.1]} 41. Qf4 {[%clk 0:00:37.9]} 41...
Re7 {[%clk 0:00:10.7]} 42. Qd4 {[%clk 0:00:38]} 42... Rf7 {[%clk 0:00:11]} 43.
Re1 {[%clk 0:00:37.3]} 43... Qf5 {[%clk 0:00:11.9]} 44. Qe5 {[%clk 0:00:36.6]}
44... Qc8 {[%clk 0:00:11.5]} 45. Rd6 {[%clk 0:00:36.1]} 45... a5 {[%clk
0:00:11.9]} 46. b5 {[%clk 0:00:35.8]} 46... Rf5 {[%clk 0:00:11.1]} 47. Qd4
{[%clk 0:00:30.9]} 47... Rxc5 {[%clk 0:00:11.1]} 48. b6 {[%clk 0:00:31.1]} 48...
Rc2+ {[%clk 0:00:11.5]} 49. Re2 {[%clk 0:00:31.4]} 49... Rxe2+ {[%clk
0:00:11.7]} 50. Kxe2 {[%clk 0:00:31.9]} 50... Qc2+ {[%clk 0:00:11.8]} 51. Qd2
{[%clk 0:00:32.2]} 51... Qc4+ {[%clk 0:00:11.9]} 52. Kf2 {[%clk 0:00:32.6]}
52... Qc5+ {[%clk 0:00:12.2]} 53. Kg3 {[%clk 0:00:32.4]} 53... Qe5+ {[%clk
0:00:11.7]} 54. Qf4 {[%clk 0:00:31]} 54... Qe1+ {[%clk 0:00:11.2]} 55. Kh2
{[%clk 0:00:31.4]} 55... Qe7 {[%clk 0:00:10.7]} 56. Qd4 {[%clk 0:00:29.5]} 56...
Bf5 {[%clk 0:00:09.9]} 57. Rd5 {[%clk 0:00:28.4]} 57... Bc8 {[%clk 0:00:09.5]}
58. Qe4+ {[%clk 0:00:25.4]} 58... Qxe4 {[%clk 0:00:10]} 59. fxe4 {[%clk
0:00:25.7]} 59... Kg6 {[%clk 0:00:10.6]} 60. Rd8 {[%clk 0:00:25.9]} 60... Be6
{[%clk 0:00:10.6]} 61. Rb8 {[%clk 0:00:25.9]} 61... Bxa2 {[%clk 0:00:11]} 62.
Rxb7 {[%clk 0:00:26.3]} 62... a4 {[%clk 0:00:11.1]} 63. Ra7 {[%clk 0:00:26.2]}
63... Bb1 {[%clk 0:00:10.4]} 64. b7 {[%clk 0:00:26.2]} 1-0

[Event "Early-Titled-Tuesday-Blitz-April-16-2024"]
[Site "Chess.com"]
[Date "2024.04.16"]
[Round "6"]
[White "xasid81"]
[Black "DeArron_Fox"]
[Result "0-1"]
[WhiteElo "2622"]
[BlackElo "2533"]
[TimeControl "180+1"]
[EndTime "9:08:57 PDT"]
[Termination "DeArron_Fox won by checkmate"]

1. e4 {[%clk 0:03:00.9]} 1... c5 {[%clk 0:02:43.4]} 2. Nf3 {[%clk 0:03:00.2]}
2... e6 {[%clk 0:02:43.7]} 3. b3 {[%clk 0:02:59.6]} 3... d6 {[%clk 0:02:40.9]}
4. Bb2 {[%clk 0:02:59.6]} 4... Nf6 {[%clk 0:02:41.3]} 5. Bb5+ {[%clk 0:02:58.3]}
5... Bd7 {[%clk 0:02:16.8]} 6. Bxd7+ {[%clk 0:02:56.8]} 6... Nbxd7 {[%clk
0:02:10.4]} 7. d3 {[%clk 0:02:57.7]} 7... Be7 {[%clk 0:02:08.1]} 8. O-O {[%clk
0:02:57]} 8... O-O {[%clk 0:02:08.8]} 9. Nbd2 {[%clk 0:02:55.4]} 9... b5 {[%clk
0:02:04]} 10. a4 {[%clk 0:02:54.7]} 10... a6 {[%clk 0:02:03.5]} 11. e5 {[%clk
0:02:54.4]} 11... dxe5 {[%clk 0:02:01.2]} 12. Nxe5 {[%clk 0:02:55.3]} 12... Nxe5
{[%clk 0:01:59.1]} 13. Bxe5 {[%clk 0:02:56.2]} 13... Qd5 {[%clk 0:01:56.5]} 14.
Bb2 {[%clk 0:02:55.3]} 14... h6 {[%clk 0:01:28.4]} 15. Qf3 {[%clk 0:02:54.9]}
15... Qxf3 {[%clk 0:01:27.5]} 16. Nxf3 {[%clk 0:02:55.8]} 16... Nd5 {[%clk
0:01:16]} 17. Rfc1 {[%clk 0:02:47.8]} 17... Rfc8 {[%clk 0:00:46]} 18. Kf1 {[%clk
0:02:46.6]} 18... Rab8 {[%clk 0:00:35]} 19. Be5 {[%clk 0:02:43.7]} 19... Rb7
{[%clk 0:00:30]} 20. axb5 {[%clk 0:02:43.3]} 20... axb5 {[%clk 0:00:30.9]} 21.
Nd2 {[%clk 0:02:40.9]} 21... f6 {[%clk 0:00:10.9]} 22. Bb2 {[%clk 0:02:40.4]}
22... Rbb8 {[%clk 0:00:05.1]} 23. g3 {[%clk 0:02:38.8]} 23... Ra8 {[%clk
0:00:05.1]} 24. Ke2 {[%clk 0:02:37.3]} 24... Kf7 {[%clk 0:00:05.5]} 25. c3
{[%clk 0:02:35.1]} 25... Nb6 {[%clk 0:00:05]} 26. c4 {[%clk 0:02:33.5]} 26...
bxc4 {[%clk 0:00:02.8]} 27. dxc4 {[%clk 0:02:33.2]} 27... Nd7 {[%clk 0:00:01.7]}
28. Ne4 {[%clk 0:02:30.8]} 28... f5 {[%clk 0:00:02]} 29. Nd2 {[%clk 0:02:28.6]}
29... Bf6 {[%clk 0:00:02.7]} 30. Bxf6 {[%clk 0:02:28]} 30... Nxf6 {[%clk
0:00:03.6]} 31. f4 {[%clk 0:02:25.7]} 31... Re8 {[%clk 0:00:02.5]} 32. Nf3
{[%clk 0:02:25.6]} 32... Nd7 {[%clk 0:00:02.1]} 33. Rd1 {[%clk 0:02:24.4]} 33...
Ke7 {[%clk 0:00:02.7]} 34. Kd3 {[%clk 0:02:18.9]} 34... Rxa1 {[%clk 0:00:02.7]}
35. Rxa1 {[%clk 0:02:18.7]} 35... Rb8 {[%clk 0:00:03.6]} 36. Kc3 {[%clk
0:02:17]} 36... Rb7 {[%clk 0:00:04.2]} 37. Ra6 {[%clk 0:02:15.1]} 37... Kf6
{[%clk 0:00:03.2]} 38. Rd6 {[%clk 0:02:12.8]} 38... g5 {[%clk 0:00:02.9]} 39.
fxg5+ {[%clk 0:02:09.2]} 39... hxg5 {[%clk 0:00:03.8]} 40. h4 {[%clk 0:02:09.6]}
40... gxh4 {[%clk 0:00:03.5]} 41. gxh4 {[%clk 0:02:08]} 41... Ne5 {[%clk
0:00:02.4]} 42. Ng5 {[%clk 0:02:04.4]} 42... Re7 {[%clk 0:00:03.1]} 43. Rd8
{[%clk 0:01:56.5]} 43... f4 {[%clk 0:00:02]} 44. Rf8+ {[%clk 0:01:45.4]} 44...
Nf7 {[%clk 0:00:02.4]} 45. Kd3 {[%clk 0:01:29.1]} 45... e5 {[%clk 0:00:02.3]}
46. Ne4+ {[%clk 0:01:25.9]} 46... Kg7 {[%clk 0:00:02]} 47. Rb8 {[%clk
0:01:17.9]} 47... Rd7+ {[%clk 0:00:02.6]} 48. Ke2 {[%clk 0:01:15.5]} 48... Rd4
{[%clk 0:00:02.4]} 49. Nxc5 {[%clk 0:01:14.8]} 49... Kf6 {[%clk 0:00:03]} 50.
Rb6+ {[%clk 0:01:12.1]} 50... Kf5 {[%clk 0:00:03.1]} 51. Rb5 {[%clk 0:01:03.8]}
51... e4 {[%clk 0:00:02.4]} 52. h5 {[%clk 0:00:53.7]} 52... Ne5 {[%clk
0:00:01.9]} 53. h6 {[%clk 0:00:52.9]} 53... Rd6 {[%clk 0:00:01.9]} 54. h7 {[%clk
0:00:50]} 54... f3+ {[%clk 0:00:02.4]} 55. Kf2 {[%clk 0:00:42]} 55... Rd2+
{[%clk 0:00:02.6]} 56. Kg3 {[%clk 0:00:27.5]} 56... Rg2+ {[%clk 0:00:02.7]} 57.
Kh3 {[%clk 0:00:27.9]} 57... Kf4 {[%clk 0:00:03.1]} 58. h8=Q {[%clk 0:00:20.5]}
58... Rg3+ {[%clk 0:00:02.9]} 59. Kh2 {[%clk 0:00:17.8]} 59... Ng4+ {[%clk
0:00:03.5]} 60. Kh1 {[%clk 0:00:17.1]} 60... Nf2+ {[%clk 0:00:03.9]} 61. Kh2
{[%clk 0:00:17.7]} 61... Rg2# {[%clk 0:00:04.5]} 0-1

[Event "Early-Titled-Tuesday-Blitz-April-16-2024"]
[Site "Chess.com"]
[Date "2024.04.16"]
[Round "6"]
[White "shirovin"]
[Black "RamyresCoelho"]
[Result "0-1"]
[WhiteElo "2044"]
[BlackElo "2296"]
[TimeControl "180+1"]
[EndTime "9:08:58 PDT"]
[Termination "RamyresCoelho won on time"]

1. e4 {[%clk 0:03:00.9]} 1... c5 {[%clk 0:02:55.3]} 2. Nf3 {[%clk 0:02:58.8]}
2... d6 {[%clk 0:02:55.6]} 3. d4 {[%clk 0:02:59.2]} 3... cxd4 {[%clk 0:02:56.5]}
4. Nxd4 {[%clk 0:02:58]} 4... Nf6 {[%clk 0:02:56.7]} 5. Nc3 {[%clk 0:02:58.4]}
5... a6 {[%clk 0:02:57.1]} 6. Be3 {[%clk 0:02:58]} 6... e6 {[%clk 0:02:57.4]} 7.
f3 {[%clk 0:02:56.4]} 7... b5 {[%clk 0:02:57]} 8. g4 {[%clk 0:02:55.3]} 8... b4
{[%clk 0:02:56.4]} 9. Nce2 {[%clk 0:02:51.2]} 9... Bb7 {[%clk 0:02:56.8]} 10. g5
{[%clk 0:02:47]} 10... Nfd7 {[%clk 0:02:53.7]} 11. Qd2 {[%clk 0:02:42.7]} 11...
Nb6 {[%clk 0:02:48.9]} 12. Ng3 {[%clk 0:02:42]} 12... N8d7 {[%clk 0:02:47.8]}
13. O-O-O {[%clk 0:02:38.7]} 13... Rc8 {[%clk 0:02:47.7]} 14. Kb1 {[%clk
0:02:37.3]} 14... Nc4 {[%clk 0:02:47.4]} 15. Bxc4 {[%clk 0:02:36.6]} 15... Rxc4
{[%clk 0:02:48.3]} 16. Qd3 {[%clk 0:02:21.9]} 16... d5 {[%clk 0:02:46.6]} 17.
Rhe1 {[%clk 0:02:10.1]} 17... Ne5 {[%clk 0:02:44.1]} 18. Qe2 {[%clk 0:01:55.6]}
18... Be7 {[%clk 0:02:41.5]} 19. f4 {[%clk 0:01:53.4]} 19... Ng6 {[%clk
0:02:30.9]} 20. exd5 {[%clk 0:01:48]} 20... Bxd5 {[%clk 0:02:31.8]} 21. f5
{[%clk 0:01:47]} 21... Nh4 {[%clk 0:02:05.1]} 22. fxe6 {[%clk 0:01:29.6]} 22...
O-O {[%clk 0:01:58.3]} 23. Ndf5 {[%clk 0:01:20.7]} 23... Nxf5 {[%clk 0:01:52.8]}
24. Nxf5 {[%clk 0:01:18.6]} 24... fxe6 {[%clk 0:01:50.2]} 25. Nd4 {[%clk
0:01:06.5]} 25... Bxg5 {[%clk 0:01:47.4]} 26. Rg1 {[%clk 0:01:05.2]} 26... Bxe3
{[%clk 0:01:46.3]} 27. Qxe3 {[%clk 0:01:04]} 27... Qf6 {[%clk 0:01:45.2]} 28. b3
{[%clk 0:00:59.2]} 28... Rc3 {[%clk 0:01:41.6]} 29. Qd2 {[%clk 0:00:52.8]} 29...
Be4 {[%clk 0:01:35.8]} 30. Rde1 {[%clk 0:00:50.3]} 30... Bf5 {[%clk 0:01:19.3]}
31. Nxf5 {[%clk 0:00:43.2]} 31... exf5 {[%clk 0:01:20.2]} 32. Qd5+ {[%clk
0:00:37.4]} 32... Kh8 {[%clk 0:01:19.8]} 33. Re6 {[%clk 0:00:35.8]} 33... Qd8
{[%clk 0:01:12.6]} 34. Qe5 {[%clk 0:00:35.1]} 34... Rc7 {[%clk 0:01:08.4]} 35.
h4 {[%clk 0:00:31]} 35... Rd7 {[%clk 0:01:07.8]} 36. h5 {[%clk 0:00:28.3]} 36...
Rd1+ {[%clk 0:01:07.5]} 37. Rxd1 {[%clk 0:00:27.2]} 37... Qxd1+ {[%clk
0:01:08.4]} 38. Kb2 {[%clk 0:00:27.3]} 38... Qxh5 {[%clk 0:01:09.3]} 39. Re7
{[%clk 0:00:23.7]} 39... Qg6 {[%clk 0:01:07.1]} 40. Re6 {[%clk 0:00:21.5]} 40...
Qf7 {[%clk 0:01:05.2]} 41. Re7 {[%clk 0:00:21.6]} 41... Qf6 {[%clk 0:01:04.3]}
42. Qxf6 {[%clk 0:00:20.3]} 42... gxf6 {[%clk 0:01:03.7]} 43. Re3 {[%clk
0:00:18.8]} 43... Rd8 {[%clk 0:01:01.8]} 44. Rf3 {[%clk 0:00:19.4]} 44... Rd5
{[%clk 0:01:01.3]} 45. Rf4 {[%clk 0:00:19.5]} 45... a5 {[%clk 0:01:00.9]} 46. a3
{[%clk 0:00:19.7]} 46... bxa3+ {[%clk 0:00:59.8]} 47. Kxa3 {[%clk 0:00:19.8]}
47... Kg7 {[%clk 0:01:00.7]} 48. c4 {[%clk 0:00:19.8]} 48... Re5 {[%clk
0:01:00.4]} 49. Ka4 {[%clk 0:00:19.2]} 49... Kg6 {[%clk 0:00:59.9]} 50. b4
{[%clk 0:00:16.9]} 50... axb4 {[%clk 0:00:59.8]} 51. Kxb4 {[%clk 0:00:17.5]}
51... Kg5 {[%clk 0:01:00.7]} 52. Rf1 {[%clk 0:00:16.5]} 52... f4 {[%clk
0:01:00.9]} 53. c5 {[%clk 0:00:16.9]} 53... Re4+ {[%clk 0:00:59.5]} 54. Kb5
{[%clk 0:00:16.6]} 54... Re5 {[%clk 0:00:59.5]} 55. Kb6 {[%clk 0:00:16.6]} 55...
Kg4 {[%clk 0:00:58.7]} 56. c6 {[%clk 0:00:16.8]} 56... Re6 {[%clk 0:00:58.2]}
57. Kb7 {[%clk 0:00:16.6]} 57... f3 {[%clk 0:00:58.1]} 58. c7 {[%clk 0:00:16.9]}
58... Re7 {[%clk 0:00:58.2]} 59. Kb8 {[%clk 0:00:16.5]} 59... Rxc7 {[%clk
0:00:56.5]} 60. Kxc7 {[%clk 0:00:16.4]} 60... Kg3 {[%clk 0:00:56.7]} 61. Rg1+
{[%clk 0:00:12.9]} 61... Kh2 {[%clk 0:00:51.4]} 62. Ra1 {[%clk 0:00:10.2]} 62...
f2 {[%clk 0:00:50.9]} 63. Kd6 {[%clk 0:00:10.3]} 63... Kg2 {[%clk 0:00:49.8]}
64. Ke6 {[%clk 0:00:10.4]} 64... h5 {[%clk 0:00:48]} 65. Kxf6 {[%clk 0:00:08.2]}
65... h4 {[%clk 0:00:47.6]} 66. Kg5 {[%clk 0:00:08.5]} 66... h3 {[%clk
0:00:47.5]} 67. Kg4 {[%clk 0:00:06.8]} 67... h2 {[%clk 0:00:47.3]} 68. Kf4
{[%clk 0:00:04.4]} 68... h1=Q {[%clk 0:00:44.3]} 0-1

[Event "Early-Titled-Tuesday-Blitz-April-16-2024"]
[Site "Chess.com"]
[Date "2024.04.16"]
[Round "6"]
[White "ATM622"]
[Black "ferdipy"]
[Result "0-1"]
[WhiteElo "2447"]
[BlackElo "2294"]
[TimeControl "180+1"]
[EndTime "9:09:01 PDT"]
[Termination "ferdipy won on time"]

1. d4 {[%clk 0:03:00.9]} 1... e5 {[%clk 0:02:55]} 2. dxe5 {[%clk 0:03:00.7]}
2... d6 {[%clk 0:02:54.5]} 3. Nf3 {[%clk 0:02:56.7]} 3... Nc6 {[%clk 0:02:54.1]}
4. e4 {[%clk 0:02:54.9]} 4... Bg4 {[%clk 0:02:48.5]} 5. Nc3 {[%clk 0:02:46.6]}
5... dxe5 {[%clk 0:02:48]} 6. Bb5 {[%clk 0:02:35.3]} 6... Qxd1+ {[%clk
0:02:45.6]} 7. Nxd1 {[%clk 0:02:35.1]} 7... O-O-O {[%clk 0:02:42.9]} 8. Bxc6
{[%clk 0:02:22.4]} 8... bxc6 {[%clk 0:02:43.8]} 9. Ne3 {[%clk 0:02:22.4]} 9...
Bxf3 {[%clk 0:02:42.3]} 10. gxf3 {[%clk 0:02:23.3]} 10... g6 {[%clk 0:02:37.6]}
11. Ke2 {[%clk 0:02:19.4]} 11... Ne7 {[%clk 0:02:29.2]} 12. Nc4 {[%clk
0:02:16.4]} 12... f6 {[%clk 0:02:12.3]} 13. Be3 {[%clk 0:02:15.1]} 13... Kb7
{[%clk 0:02:06.6]} 14. Rad1 {[%clk 0:02:09.7]} 14... Bg7 {[%clk 0:02:05.9]} 15.
Bc5 {[%clk 0:02:08.3]} 15... Nc8 {[%clk 0:02:03.9]} 16. b4 {[%clk 0:02:03.7]}
16... f5 {[%clk 0:01:55.6]} 17. a4 {[%clk 0:01:52.6]} 17... Nb6 {[%clk
0:01:51.5]} 18. Na5+ {[%clk 0:01:50.7]} 18... Ka6 {[%clk 0:01:51.4]} 19. Nxc6
{[%clk 0:01:49.8]} 19... Rxd1 {[%clk 0:01:50.1]} 20. b5+ {[%clk 0:01:50]} 20...
Kb7 {[%clk 0:01:49]} 21. Rxd1 {[%clk 0:01:49.5]} 21... Nxa4 {[%clk 0:01:49]} 22.
Bb4 {[%clk 0:01:37.5]} 22... a6 {[%clk 0:01:41.4]} 23. c4 {[%clk 0:01:34.5]}
23... Nb2 {[%clk 0:01:36.6]} 24. Rd7 {[%clk 0:01:28.8]} 24... Bh6 {[%clk
0:01:21.1]} 25. Bd6 {[%clk 0:01:05.5]} 25... Nxc4 {[%clk 0:01:11.8]} 26. Bxc7
{[%clk 0:00:46.6]} 26... axb5 {[%clk 0:00:56]} 27. Ne7 {[%clk 0:00:33.4]} 27...
Ka6 {[%clk 0:00:42.3]} 28. exf5 {[%clk 0:00:28.2]} 28... gxf5 {[%clk 0:00:39.3]}
29. Nxf5 {[%clk 0:00:27.7]} 29... Bf4 {[%clk 0:00:39.9]} 30. h4 {[%clk
0:00:19.3]} 30... h5 {[%clk 0:00:35.9]} 31. Kd3 {[%clk 0:00:17.5]} 31... Rf8
{[%clk 0:00:33.8]} 32. Nd6 {[%clk 0:00:12.8]} 32... Nxd6 {[%clk 0:00:31.8]} 33.
Bxd6 {[%clk 0:00:12.9]} 33... Rc8 {[%clk 0:00:28.8]} 34. Ke4 {[%clk 0:00:09.8]}
34... Rc4+ {[%clk 0:00:26.8]} 35. Kd5 {[%clk 0:00:09.8]} 35... Rc2 {[%clk
0:00:19.6]} 36. Ke6 {[%clk 0:00:08.7]} 36... Kb6 {[%clk 0:00:17.9]} 37. Rd8
{[%clk 0:00:06.8]} 37... Ka5 {[%clk 0:00:11.1]} 38. Ra8+ {[%clk 0:00:05.2]}
38... Kb6 {[%clk 0:00:11.4]} 39. Rb8+ {[%clk 0:00:05.3]} 39... Ka6 {[%clk
0:00:10.9]} 40. Kd7 {[%clk 0:00:03.3]} 40... Rd2 {[%clk 0:00:09.3]} 41. Ke6
{[%clk 0:00:02.4]} 41... Rxd6+ {[%clk 0:00:08.4]} 42. Kf5 {[%clk 0:00:02.3]}
42... Rb6 {[%clk 0:00:06.4]} 43. Ra8+ {[%clk 0:00:02.4]} 43... Kb7 {[%clk
0:00:06.9]} 44. Ra3 {[%clk 0:00:01.7]} 44... b4 {[%clk 0:00:07.5]} 45. Rb3
{[%clk 0:00:02.2]} 45... Ka6 {[%clk 0:00:06.8]} 46. Ke4 {[%clk 0:00:02.5]} 46...
Ka5 {[%clk 0:00:07.4]} 47. Kd5 {[%clk 0:00:02.5]} 47... Ka4 {[%clk 0:00:07.9]}
48. Rb1 {[%clk 0:00:02.7]} 48... b3 {[%clk 0:00:07.7]} 49. Kc5 {[%clk
0:00:02.9]} 49... Rb5+ {[%clk 0:00:07.8]} 50. Kc4 {[%clk 0:00:03]} 50... Rb4+
{[%clk 0:00:08.2]} 51. Kc5 {[%clk 0:00:03.2]} 51... b2 {[%clk 0:00:08.1]} 0-1

[Event "Early-Titled-Tuesday-Blitz-April-16-2024"]
[Site "Chess.com"]
[Date "2024.04.16"]
[Round "6"]
[White "FlemingA"]
[Black "Ati1517"]
[Result "1-0"]
[WhiteElo "2425"]
[BlackElo "2236"]
[TimeControl "180+1"]
[EndTime "9:09:08 PDT"]
[Termination "FlemingA won by resignation"]

1. e4 {[%clk 0:03:00.3]} 1... c5 {[%clk 0:02:59.1]} 2. Nf3 {[%clk 0:02:59.7]}
2... d6 {[%clk 0:02:56.9]} 3. b4 {[%clk 0:02:55.7]} 3... cxb4 {[%clk 0:02:56.2]}
4. a3 {[%clk 0:02:56.1]} 4... bxa3 {[%clk 0:02:55.4]} 5. d4 {[%clk 0:02:55.8]}
5... Nf6 {[%clk 0:02:55.8]} 6. Bd3 {[%clk 0:02:54.7]} 6... Nc6 {[%clk
0:02:54.2]} 7. h3 {[%clk 0:02:52.2]} 7... e5 {[%clk 0:02:53.2]} 8. d5 {[%clk
0:02:48.1]} 8... Nb4 {[%clk 0:02:49.5]} 9. Bxa3 {[%clk 0:02:43]} 9... Qa5 {[%clk
0:02:39.5]} 10. O-O {[%clk 0:02:39.4]} 10... Nxd3 {[%clk 0:02:35.4]} 11. Qxd3
{[%clk 0:02:39.6]} 11... Qc7 {[%clk 0:02:32.4]} 12. c4 {[%clk 0:02:26.3]} 12...
Be7 {[%clk 0:02:29.3]} 13. Nc3 {[%clk 0:02:26.2]} 13... b6 {[%clk 0:02:27.1]}
14. Nb5 {[%clk 0:02:25.3]} 14... Qd7 {[%clk 0:02:23.6]} 15. Nd2 {[%clk 0:02:10]}
15... O-O {[%clk 0:02:21]} 16. f4 {[%clk 0:02:09]} 16... a6 {[%clk 0:02:11.5]}
17. Nc3 {[%clk 0:02:06]} 17... exf4 {[%clk 0:01:56.3]} 18. Rxf4 {[%clk
0:02:01.2]} 18... Nh5 {[%clk 0:01:52.2]} 19. Rf2 {[%clk 0:01:57]} 19... Bh4
{[%clk 0:01:50.9]} 20. Rf3 {[%clk 0:01:48]} 20... Qe7 {[%clk 0:01:47]} 21. Raf1
{[%clk 0:01:31.6]} 21... Bd7 {[%clk 0:01:34.3]} 22. Nb3 {[%clk 0:01:30.7]} 22...
Rae8 {[%clk 0:01:16.1]} 23. Nd4 {[%clk 0:01:21.7]} 23... Bf6 {[%clk 0:01:04.8]}
24. g4 {[%clk 0:00:22.3]} 24... Bxd4+ {[%clk 0:00:45.3]} 25. Qxd4 {[%clk
0:00:23.2]} 25... Nf6 {[%clk 0:00:44.3]} 26. Rxf6 {[%clk 0:00:20.2]} 26... gxf6
{[%clk 0:00:42.6]} 27. Rxf6 {[%clk 0:00:20.8]} 27... Qe5 {[%clk 0:00:22.9]} 28.
Qxe5 {[%clk 0:00:20.9]} 28... dxe5 {[%clk 0:00:16.4]} 29. Bxf8 {[%clk 0:00:13]}
29... Kxf8 {[%clk 0:00:16.7]} 30. Rxb6 {[%clk 0:00:12.9]} 30... Rc8 {[%clk
0:00:17.3]} 31. Rxa6 {[%clk 0:00:05.5]} 31... Rxc4 {[%clk 0:00:16.5]} 32. Ra3
{[%clk 0:00:06.2]} 32... Ke7 {[%clk 0:00:15.6]} 33. Kf2 {[%clk 0:00:06.7]} 33...
Kd6 {[%clk 0:00:15.7]} 34. Ke3 {[%clk 0:00:06.7]} 34... Kc5 {[%clk 0:00:15.6]}
35. Ne2 {[%clk 0:00:05]} 35... Kb4 {[%clk 0:00:15.5]} 36. Rd3 {[%clk 0:00:03.3]}
36... Ba4 {[%clk 0:00:15.5]} 37. Ng3 {[%clk 0:00:03.2]} 37... Bc2 {[%clk
0:00:15]} 38. Rd2 {[%clk 0:00:02.3]} 38... Ba4 {[%clk 0:00:13.8]} 39. Rf2 {[%clk
0:00:01.3]} 39... Rc3+ {[%clk 0:00:12.9]} 40. Kd2 {[%clk 0:00:01.5]} 40... Rxg3
{[%clk 0:00:13]} 41. Rxf7 {[%clk 0:00:02.2]} 41... Rxh3 {[%clk 0:00:13.3]} 42.
Re7 {[%clk 0:00:01.6]} 42... Rh2+ {[%clk 0:00:13.4]} 43. Ke3 {[%clk 0:00:01.6]}
43... Rh3+ {[%clk 0:00:13.5]} 44. Kf2 {[%clk 0:00:02]} 44... Rd3 {[%clk
0:00:12]} 45. Rxe5 {[%clk 0:00:02.5]} 45... Rd4 {[%clk 0:00:11.9]} 46. Ke3
{[%clk 0:00:02.3]} 46... Kc5 {[%clk 0:00:06.3]} 47. Re7 {[%clk 0:00:03]} 47...
Rc4 {[%clk 0:00:05]} 48. Rc7+ {[%clk 0:00:03.2]} 48... Kb4 {[%clk 0:00:05.4]}
49. Rxh7 {[%clk 0:00:03.8]} 49... Rc3+ {[%clk 0:00:05.5]} 50. Kf4 {[%clk
0:00:04.4]} 50... Rc4 {[%clk 0:00:05.4]} 51. Rb7+ {[%clk 0:00:04.9]} 51... Ka5
{[%clk 0:00:05.2]} 52. g5 {[%clk 0:00:04.7]} 52... Bc2 {[%clk 0:00:05.2]} 53.
Re7 {[%clk 0:00:04.5]} 53... Kb6 {[%clk 0:00:03.6]} 54. g6 {[%clk 0:00:05.1]}
54... Rc3 {[%clk 0:00:03.8]} 55. g7 {[%clk 0:00:05.5]} 55... Rc8 {[%clk
0:00:04.1]} 56. Rf7 {[%clk 0:00:05.1]} 56... Rg8 {[%clk 0:00:03.9]} 57. Ke5
{[%clk 0:00:04.6]} 57... Kc5 {[%clk 0:00:03.2]} 58. Rc7+ {[%clk 0:00:05]} 58...
Kb6 {[%clk 0:00:03.6]} 59. Rxc2 {[%clk 0:00:05.3]} 1-0